fUST/lending_fUST_20250830
["ID","MTS","AMOUNT","RATE_DAILY","PERIOD"]
[382060196,1756491070606,-159.0,0.000401,120]
[382060197,1756491070617,-500.0,0.00040547,120]
[382060198,1756491070626,-500.0,0.00041095,120]
[382060199,1756491070636,-351.5,0.000413,30]
[382060200,1756491070646,-1000.0,0.00041585,2]
[382060201,1756491070741,-500.0,0.00041643,120]
[382060202,1756491070753,-381.52642049,0.0004198,3]
[382060203,1756491070763,-151.0,0.0004199,120]
[382060204,1756491070773,-151.0,0.0004199,120]
[382060205,1756491070782,-151.0,0.0004199,120]
[382060206,1756491070792,-433.548376,0.0004199,120]
[382060207,1756491070802,-433.548376,0.0004199,120]
[382060208,1756491070813,-433.548376,0.0004199,120]
[382060209,1756491070823,-433.548376,0.0004199,120]
[382060210,1756491070833,-151.0,0.0004199,120]
[382060211,1756491070843,-160.0,0.00041998,2]
[382060212,1756491070853,-160.0,0.00042,3]
[382060213,1756491070865,-217.30324474,0.00042066,2]
[382060214,1756491070874,-160.0,0.00042066,2]
[382060215,1756491070884,-11358.84933845,0.00042067,2]
[382060216,1756491070893,-160.0,0.00042077,2]
[382060217,1756491070903,-160.0,0.00042077,2]
[382060218,1756491070913,-417.15472785,0.00042077,2]
[382060219,1756491070923,-160.0,0.00042088,2]
[382060220,1756491070933,-845.57753514,0.00042088,2]
[382060221,1756491070943,-529.77114056,0.00042088,2]
[382060222,1756491070952,-160.0,0.00042088,2]
[382060223,1756491070961,-232.6790651,0.00042088,2]
[382060224,1756491070971,-216.21406313,0.00042097,2]
[382060225,1756491070981,-160.0,0.00042097,2]
[382060226,1756491070990,-151.0,0.00042171,120]
[382060227,1756491071002,-151.0,0.00042171,120]
[382060228,1756491071011,-500.0,0.00042191,120]
[382060229,1756491071021,-151.0,0.00042207,120]
[382060230,1756491071031,-151.845031,0.00042216,120]
[382060231,1756491071041,-151.0,0.00042216,120]
[382060232,1756491071050,-151.0,0.00042216,120]
[382060233,1756491071062,-151.0,0.00042216,120]
[382060234,1756491071071,-151.0,0.00042265,120]
[382060235,1756491071080,-151.0,0.00042265,120]
[382060236,1756491071090,-270.276,0.00042265,120]
[382060237,1756491071099,-151.0,0.00042265,120]
[382060238,1756491071109,-276.828106,0.00042265,120]
[382060239,1756491071118,-3432.62012383,0.00042265,2]
[382060240,1756491071128,-1000.0,0.00042532,30]
[382060241,1756491071139,-244.0,0.00042532,30]
[382060242,1756491071148,-2619.2632778,0.00042683,2]
[382060243,1756491071158,-500.0,0.00042739,120]
[382060244,1756491071167,-173.66815186,0.00042842,17]
[382060245,1756491071178,-381.52642049,0.00042912,3]
[382060246,1756491071187,-381.52642049,0.00042932,3]
[382060247,1756491071198,-289.401746,0.00042932,120]
[382060248,1756491071210,-151.0,0.00042932,120]
[382060249,1756491071221,-151.0,0.00042932,120]
[382060250,1756491071230,-281.140802,0.00042932,120]
[382060251,1756491071240,-433.548376,0.00042932,120]
[382060252,1756491071249,-433.548376,0.00042932,120]
[382060253,1756491071259,-433.548376,0.00042932,120]
[382060254,1756491071269,-433.548374,0.00042932,120]
[382060255,1756491071277,-151.0,0.00042932,120]
[382060256,1756491071287,-370000.0,0.00042942,2]
[382060257,1756491071297,-151.0,0.00042942,120]
[382060258,1756491071306,-151.0,0.00042942,120]
[382060259,1756491071315,-151.0,0.00042942,120]
[382060260,1756491071328,-160.0,0.00042957,3]
[382060261,1756491071344,-500.0,0.00042973,10]
[382060262,1756491071353,-500.0,0.00042973,10]
[382060263,1756491071362,-500.0,0.00042973,7]
[382060264,1756491071380,-500.0,0.00042973,10]
[382060265,1756491071398,-150.0,0.00042973,10]
[382060266,1756491071416,-500.0,0.00042973,2]
[382060267,1756491071434,-500.0,0.00042973,10]
[382060268,1756491071454,-500.0,0.00042973,10]
[382060269,1756491071471,-500.0,0.00042973,10]
[382060270,1756491071488,-500.0,0.00042973,10]
[382060271,1756491071502,-151.0,0.00043,10]
[382060272,1756491071519,-151.0,0.00043033,120]
[382060273,1756491071538,-151.0,0.00043033,120]
[382060274,1756491071561,-151.0,0.00043033,120]
[382060275,1756491071575,-151.0,0.00043033,120]
[382060276,1756491071592,-151.0,0.00043033,120]
[382060277,1756491071608,-154.254887,0.00043033,120]
[382060278,1756491071632,-152.074567,0.00043033,120]
[382060279,1756491071647,-131244.7815946,0.00043043,2]
[382060280,1756491071661,-151.0,0.00043043,120]
[382060281,1756491071676,-151.0,0.00043043,120]
[382060282,1756491071700,-151.0,0.00043043,120]
[382060283,1756491071715,-152.820154,0.00043043,120]
[382060284,1756491071729,-500.0,0.00043073,10]
[382060285,1756491071744,-500.0,0.00043073,2]
[382060286,1756491071760,-151.0,0.000431,14]
[382060287,1756491071777,-151.0,0.000432,10]
[382060288,1756491071792,-409.0,0.00043277,2]
[382060289,1756491071807,-500.0,0.00043287,120]
[382060290,1756491071821,-151.0,0.000433,17]
[382060291,1756491071836,-151.0,0.000433,12]
[382060292,1756491071852,-128486.28625176,0.00043333,120]
[382060293,1756491071866,-151.0,0.000434,19]
[382060294,1756491071881,-3000.0,0.00043426,6]
[382060295,1756491071897,-151.0,0.000435,13]
[382060296,1756491071912,-1000.0,0.00043521,10]
[382060297,1756491071927,-1000.0,0.00043521,10]
[382060298,1756491071941,-1001.40951824,0.00043521,10]
[382060299,1756491071955,-1000.0,0.00043521,7]
[382060300,1756491071969,-250.0,0.00043521,10]
[382060301,1756491071984,-1000.0,0.00043521,2]
[382060302,1756491072000,-1000.0,0.00043521,10]
[382060303,1756491072015,-1000.0,0.00043521,10]
[382060304,1756491072029,-1000.0,0.00043521,10]
[382060305,1756491072044,-1000.0,0.00043521,10]
[382060306,1756491072058,-199.0,0.00043534,120]
[382060307,1756491072072,-199.0,0.00043534,120]
[382060308,1756491072086,-151.0,0.000436,10]
[382060309,1756491072101,-500.74653289,0.00043621,10]
[382060310,1756491072114,-500.0,0.00043621,2]
[382060311,1756491072129,-151.0,0.00043621,120]
[382060312,1756491072143,-151.0,0.00043624,120]
[382060313,1756491072157,-151.0,0.00043624,120]
[382060314,1756491072172,-8091.71032203,0.00043625,2]
[382060315,1756491072186,-236.0,0.00043633,7]
[382060316,1756491072200,-199.0,0.00043634,120]
[382060317,1756491072214,-199.0,0.00043634,120]
[382060318,1756491072228,-16745.342738,0.000437,120]
[382060319,1756491072242,-151.0,0.000437,14]
[382060320,1756491072257,-151.0,0.00043725,120]
[382060321,1756491072272,-151.0,0.00043725,120]
[382060322,1756491072287,-241.04156235,0.00043734,120]
[382060323,1756491072301,-2587.56,0.00043734,2]
[382060324,1756491072316,-2587.56,0.00043734,2]
[382060325,1756491072332,-2587.56,0.00043734,2]
[382060326,1756491072348,-2587.56,0.00043734,2]
[382060327,1756491072362,-2587.56,0.00043734,2]
[382060328,1756491072485,-2587.56,0.00043734,2]
[382060329,1756491072509,-2587.56,0.00043734,2]
[382060330,1756491072519,-2587.56,0.00043734,2]
[382060331,1756491072530,-2587.56,0.00043734,2]
[382060332,1756491072539,-2587.56,0.00043734,2]
[382060333,1756491072549,-2587.56,0.00043734,2]
[382060334,1756491072559,-2587.56,0.00043734,2]
[382060335,1756491072569,-2587.56,0.00043734,2]
[382060336,1756491072579,-2587.56,0.00043734,2]
[382060337,1756491072589,-2587.56,0.00043734,2]
[382060338,1756491072599,-2587.56,0.00043734,2]
[382060339,1756491072609,-2587.56,0.00043734,2]
[382060340,1756491072619,-2587.56,0.00043734,2]
[382060341,1756491072629,-2587.56,0.00043734,2]
[382060342,1756491072639,-2587.56,0.00043734,2]
[382060343,1756491072649,-2587.56,0.00043734,2]
[382060344,1756491072659,-2587.56,0.00043734,2]
[382060345,1756491072669,-2587.56,0.00043734,2]
[382060346,1756491072679,-2587.70353406,0.00043734,2]
[382060347,1756491072688,-220.01462353,0.00043735,2]
[382060348,1756491072698,-940.15208315,0.00043735,2]
[382060349,1756491072708,-236.0,0.00043737,120]
[382060350,1756491072718,-2160.531,0.00043774,2]
[382060351,1756491072727,-1000.0,0.00043791,2]
[382060352,1756491072736,-151.0,0.000438,10]
[382060353,1756491072746,-236.0,0.00043801,2]
[382060354,1756491072756,-151.0,0.00043824,30]
[382060355,1756491072766,-151.0,0.00043824,30]
[382060356,1756491072776,-250.0,0.00043824,30]
[382060357,1756491072786,-151.0,0.00043824,30]
[382060358,1756491072795,-156.587,0.00043824,30]
[382060359,1756491072806,-500.0,0.00043824,30]
[382060360,1756491072815,-250.0,0.00043824,30]
[382060361,1756491072825,-151.0,0.00043824,30]
[382060362,1756491072834,-162.380719,0.00043824,30]
[382060363,1756491072844,-500.0,0.00043824,30]
[382060364,1756491072854,-250.0,0.00043824,30]
[382060365,1756491072863,-168.3888056,0.00043824,30]
[382060366,1756491072873,-151.0,0.00043824,30]
[382060367,1756491072882,-500.0,0.00043824,30]
[382060368,1756491072892,-250.0,0.00043824,30]
[382060369,1756491072902,-174.61919141,0.00043824,30]
[382060370,1756491072911,-151.0,0.00043824,30]
[382060371,1756491072921,-500.0,0.00043824,30]
[382060372,1756491072930,-250.0,0.00043824,30]
[382060373,1756491072940,-151.0,0.00043824,30]
[382060374,1756491072949,-500.0,0.00043824,30]
[382060375,1756491072959,-250.0,0.00043824,30]
[382060376,1756491072969,-250.0,0.00043824,30]
[382060377,1756491072978,-151.0,0.00043824,30]
[382060378,1756491072988,-1888.0,0.00043824,30]
[382060379,1756491072997,-500.0,0.00043824,30]
[382060380,1756491073007,-250.0,0.00043824,30]
[382060381,1756491073017,-250.0,0.00043824,30]
[382060382,1756491073026,-151.0,0.00043824,30]
[382060383,1756491073035,-500.0,0.00043824,30]
[382060384,1756491073045,-1957.856,0.00043824,30]
[382060385,1756491073055,-250.0,0.00043824,30]
[382060386,1756491073064,-250.0,0.00043824,30]
[382060387,1756491073072,-151.0,0.00043824,30]
[382060388,1756491073081,-2030.296672,0.00043824,30]
[382060389,1756491073091,-250.0,0.00043824,30]
[382060390,1756491073100,-250.0,0.00043824,30]
[382060391,1756491073109,-500.0,0.00043824,30]
[382060392,1756491073118,-151.0,0.00043824,30]
[382060393,1756491073129,-2105.41764886,0.00043824,30]
[382060394,1756491073139,-250.0,0.00043824,30]
[382060395,1756491073148,-250.0,0.00043824,30]
[382060396,1756491073157,-500.0,0.00043824,30]
[382060397,1756491073166,-151.0,0.00043824,30]
[382060398,1756491073176,-2183.31810187,0.00043824,30]
[382060399,1756491073185,-250.0,0.00043824,30]
[382060400,1756491073193,-187.78006525,0.00043824,30]
[382060401,1756491073202,-250.0,0.00043824,30]
[382060402,1756491073211,-500.0,0.00043824,30]
[382060403,1756491073221,-151.0,0.00043824,30]
[382060404,1756491073230,-1492.89071436,0.00043824,30]
[382060405,1756491073239,-194.72792766,0.00043824,30]
[382060406,1756491073249,-151.0,0.00043824,30]
[382060407,1756491073258,-500.0,0.00043824,30]
[382060408,1756491073267,-201.93286099,0.00043824,30]
[382060409,1756491073277,-250.0,0.00043824,30]
[382060410,1756491073286,-500.0,0.00043824,30]
[382060411,1756491073296,-151.0,0.00043824,30]
[382060412,1756491073305,-306.25184352,0.00043824,30]
[382060413,1756491073315,-151.0,0.00043824,30]
[382060414,1756491073325,-500.0,0.00043824,30]
[382060415,1756491073339,-250.0,0.00043824,30]
[382060416,1756491073348,-151.0,0.00043824,30]
[382060417,1756491073358,-500.0,0.00043824,30]
[382060418,1756491073367,-250.0,0.00043824,30]
[382060419,1756491073378,-151.0,0.00043824,30]
[382060420,1756491073387,-500.0,0.00043824,30]
[382060421,1756491073397,-250.0,0.00043824,30]
[382060422,1756491073408,-500.0,0.00043824,30]
[382060423,1756491073417,-151.0,0.00043824,30]
[382060424,1756491073427,-250.0,0.00043824,30]
[382060425,1756491073436,-500.0,0.00043824,30]
[382060426,1756491073446,-151.0,0.00043824,30]
[382060427,1756491073456,-250.0,0.00043824,30]
[382060428,1756491073469,-500.0,0.00043824,30]
[382060429,1756491073481,-151.0,0.00043824,30]
[382060430,1756491073493,-250.0,0.00043824,30]
[382060431,1756491073506,-500.0,0.00043824,30]
[382060432,1756491073516,-250.0,0.00043824,30]
[382060433,1756491073527,-500.0,0.00043824,30]
[382060434,1756491073544,-250.0,0.00043824,30]
[382060435,1756491073554,-151.0,0.00043824,30]
[382060436,1756491073564,-151.0,0.00043824,30]
[382060437,1756491073574,-151.0,0.00043824,30]
[382060438,1756491073583,-151.2800354,0.00043824,30]
[382060439,1756491073594,-151.0,0.00043824,30]
[382060440,1756491073603,-151.0,0.00043824,30]
[382060441,1756491073614,-151.0,0.00043824,30]
[382060442,1756491073624,-151.0,0.00043824,30]
[382060443,1756491073634,-151.0,0.00043824,30]
[382060444,1756491073644,-196.72106526,0.00043824,30]
[382060445,1756491073655,-151.48789296,0.00043824,30]
[382060446,1756491073665,-250.0,0.00043824,30]
[382060447,1756491073675,-250.0,0.00043824,30]
[382060448,1756491073684,-250.0,0.00043824,30]
[382060449,1756491073694,-250.0,0.00043824,30]
[382060450,1756491073704,-250.0,0.00043824,30]
[382060451,1756491073715,-250.0,0.00043824,30]
[382060452,1756491073726,-250.0,0.00043824,30]
[382060453,1756491073736,-250.0,0.00043824,30]
[382060454,1756491073747,-250.0,0.00043824,30]
[382060455,1756491073758,-250.0,0.00043824,30]
[382060456,1756491073768,-250.0,0.00043824,30]
[382060457,1756491073779,-250.0,0.00043824,30]
[382060458,1756491073790,-250.0,0.00043824,30]
[382060459,1756491073801,-250.0,0.00043824,30]
[382060460,1756491073813,-250.0,0.00043824,30]
[382060461,1756491073824,-250.0,0.00043824,30]
[382060462,1756491073834,-480.0,0.00043835,120]
[382060463,1756491073843,-480.0,0.00043835,120]
[382060464,1756491073938,-500.0,0.00043835,2]
[382060465,1756491073949,-500.0,0.00043835,2]
[382060466,1756491073960,-500.0,0.00043835,2]
[382060467,1756491073972,-500.68608735,0.00043835,2]
[382060468,1756491073981,-480.0,0.00043835,120]
[382060469,1756491073991,-480.0,0.00043835,120]
[382060470,1756491074002,-480.0,0.00043835,120]
[382060471,1756491074011,-480.0,0.00043835,120]
[382060472,1756491074021,-480.0,0.00043835,120]
[382060473,1756491074032,-481.59012076,0.00043835,120]
[382060474,1756491074043,-480.33505666,0.00043835,120]
[382060475,1756491074053,-480.0,0.00043835,120]
[382060476,1756491074062,-480.0,0.00043835,120]
[382060477,1756491074072,-480.0,0.00043835,120]
[382060478,1756491074082,-237.09483806,0.00043835,120]
[382060479,1756491074093,-480.0,0.00043835,120]
[382060480,1756491074105,-480.0,0.00043835,120]
[382060481,1756491074116,-480.0,0.00043835,120]
[382060482,1756491074127,-480.0,0.00043835,120]
[382060483,1756491074137,-480.0,0.00043835,120]
[382060484,1756491074146,-480.0,0.00043835,120]
[382060485,1756491074157,-480.0,0.00043835,120]
[382060486,1756491074167,-480.0,0.00043835,120]
[382060487,1756491074177,-480.26890369,0.00043835,120]
[382060488,1756491074186,-534.72,0.00043835,120]
[382060489,1756491074196,-480.0,0.00043835,120]
[382060490,1756491074205,-480.0,0.00043835,120]
[382060491,1756491074215,-480.0,0.00043835,120]
[382060492,1756491074224,-480.0,0.00043835,120]
[382060493,1756491074233,-480.0,0.00043835,120]
[382060494,1756491074243,-480.0,0.00043835,120]
[382060495,1756491074253,-480.0,0.00043835,120]
[382060496,1756491074263,-480.80054676,0.00043835,120]
[382060497,1756491074273,-480.0,0.00043835,120]
[382060498,1756491074282,-480.0,0.00043835,120]
[382060499,1756491074291,-734.17,0.00043835,120]
[382060500,1756491074301,-480.0,0.00043835,120]
[382060501,1756491074311,-502.33406295,0.00043835,120]
[382060502,1756491074320,-157.9497051,0.00043835,120]
[382060503,1756491074333,-480.0,0.00043835,120]
[382060504,1756491074343,-480.0,0.00043835,120]
[382060505,1756491074353,-480.0,0.00043835,120]
[382060506,1756491074363,-480.0,0.00043835,120]
[382060507,1756491074373,-480.0,0.00043835,120]
[382060508,1756491074384,-480.0,0.00043835,120]
[382060509,1756491074394,-480.0,0.00043835,120]
[382060510,1756491074405,-480.0,0.00043835,120]
[382060511,1756491074414,-480.0,0.00043835,120]
[382060512,1756491074424,-480.0,0.00043835,120]
[382060513,1756491074434,-480.0,0.00043835,120]
[382060514,1756491074444,-480.0,0.00043835,7]
[382060515,1756491074454,-480.73643261,0.00043835,120]
[382060516,1756491074463,-480.0,0.00043835,120]
[382060517,1756491074472,-480.0,0.00043835,120]
[382060518,1756491074481,-480.0,0.00043835,120]
[382060519,1756491074491,-480.0,0.00043835,120]
[382060520,1756491074502,-480.0,0.00043835,120]
[382060521,1756491074512,-480.0,0.00043835,120]
[382060522,1756491074522,-480.0,0.00043835,120]
[382060523,1756491074531,-480.0,0.00043835,120]
[382060524,1756491074540,-480.0,0.00043835,120]
[382060525,1756491074549,-480.0,0.00043835,120]
[382060526,1756491074559,-480.97009902,0.00043835,120]
[382060527,1756491074567,-480.0,0.00043835,120]
[382060528,1756491074577,-480.0,0.00043835,120]
[382060529,1756491074586,-480.0,0.00043835,120]
[382060530,1756491074595,-480.0,0.00043835,120]
[382060531,1756491074605,-480.0,0.00043835,120]
[382060532,1756491074614,-481.54663408,0.00043835,120]
[382060533,1756491074623,-480.0,0.00043835,120]
[382060534,1756491074633,-480.0,0.00043835,120]
[382060535,1756491074643,-480.0,0.00043835,120]
[382060536,1756491074653,-480.0,0.00043835,120]
[382060537,1756491074662,-480.0,0.00043835,120]
[382060538,1756491074672,-480.0,0.00043835,120]
[382060539,1756491074682,-481.59759748,0.00043835,120]
[382060540,1756491074693,-480.0,0.00043835,120]
[382060541,1756491074709,-480.0,0.00043835,120]
[382060542,1756491074718,-554.18195504,0.00043835,120]
[382060543,1756491074729,-480.0,0.00043835,120]
[382060544,1756491074739,-480.0,0.00043835,120]
[382060545,1756491074749,-480.0,0.00043835,120]
[382060546,1756491074759,-480.0,0.00043835,120]
[382060547,1756491074768,-480.0,0.00043835,120]
[382060548,1756491074777,-481.20329325,0.00043835,120]
[382060549,1756491074786,-480.0,0.00043835,120]
[382060550,1756491074795,-480.0,0.00043835,120]
[382060551,1756491074805,-480.0,0.00043835,120]
[382060552,1756491074817,-603.03,0.00043835,120]
[382060553,1756491074826,-480.0,0.00043835,120]
[382060554,1756491074836,-480.0,0.00043835,120]
[382060555,1756491074845,-480.0,0.00043835,120]
[382060556,1756491074855,-481.18494462,0.00043835,120]
[382060557,1756491074864,-480.0,0.00043835,120]
[382060558,1756491074873,-480.0,0.00043835,30]
[382060559,1756491074883,-566.21036869,0.00043835,120]
[382060560,1756491074892,-480.0,0.00043835,120]
[382060561,1756491074901,-480.0,0.00043835,30]
[382060562,1756491074911,-480.0,0.00043835,120]
[382060563,1756491074921,-480.0,0.00043835,120]
[382060564,1756491074929,-480.0,0.00043835,120]
[382060565,1756491074938,-480.0,0.00043835,120]
[382060566,1756491074947,-480.0,0.00043835,120]
[382060567,1756491074956,-480.0,0.00043835,120]
[382060568,1756491074965,-480.0,0.00043835,120]
[382060569,1756491074975,-480.0,0.00043835,120]
[382060570,1756491074984,-481.35724442,0.00043835,120]
[382060571,1756491074994,-480.0,0.00043835,120]
[382060572,1756491075003,-480.0,0.00043835,120]
[382060573,1756491075012,-480.0,0.00043835,120]
[382060574,1756491075022,-482.40665899,0.00043835,120]
[382060575,1756491075032,-482.69791383,0.00043835,120]
[382060576,1756491075043,-665.9,0.00043835,120]
[382060577,1756491075055,-480.0,0.00043835,120]
[382060578,1756491075068,-480.0,0.00043835,120]
[382060579,1756491075077,-480.0,0.00043835,120]
[382060580,1756491075086,-480.0,0.00043835,120]
[382060581,1756491075096,-480.0,0.00043835,120]
[382060582,1756491075105,-522.11,0.00043835,120]
[382060583,1756491075116,-1000.0,0.00043835,120]
[382060584,1756491075127,-480.0,0.00043835,120]
[382060585,1756491075141,-480.0,0.00043835,20]
[382060586,1756491075151,-480.0,0.00043835,120]
[382060587,1756491075162,-480.0,0.00043835,12]
[382060588,1756491075173,-480.0,0.00043835,120]
[382060589,1756491075183,-480.0,0.00043835,120]
[382060590,1756491075193,-480.0,0.00043835,120]
[382060591,1756491075202,-480.0,0.00043835,120]
[382060592,1756491075212,-480.0,0.00043835,120]
[382060593,1756491075222,-480.0,0.00043835,120]
[382060594,1756491075233,-492.67,0.00043835,120]
[382060595,1756491075244,-480.0,0.00043835,120]
[382060596,1756491075255,-480.0,0.00043835,120]
[382060597,1756491075265,-173.07890117,0.00043835,120]
[382060598,1756491075275,-480.0,0.00043835,120]
[382060599,1756491075284,-626.48495003,0.00043835,120]
[382060600,1756491075294,-504.20520447,0.00043835,120]
[382060601,1756491075304,-480.0,0.00043835,120]
[382060602,1756491075320,-494.81,0.00043835,120]
[382060603,1756491075334,-480.0,0.00043835,120]
[382060604,1756491075344,-480.0,0.00043835,120]
[382060605,1756491075354,-500.0,0.00043835,120]
[382060606,1756491075364,-298.10748784,0.00043835,120]
[382060607,1756491075374,-480.0,0.00043835,120]
[382060608,1756491075384,-480.0,0.00043835,120]
[382060609,1756491075393,-480.0,0.00043835,120]
[382060610,1756491075405,-480.0,0.00043835,120]
[382060611,1756491075415,-485.48242378,0.00043835,120]
[382060612,1756491075426,-480.0,0.00043835,120]
[382060613,1756491075436,-480.0,0.00043835,120]
[382060614,1756491075447,-480.0,0.00043835,120]
[382060615,1756491075457,-480.0,0.00043835,120]
[382060616,1756491075467,-480.0,0.00043835,120]
[382060617,1756491075477,-480.0,0.00043835,120]
[382060618,1756491075486,-1666.66,0.00043835,120]
[382060619,1756491075497,-480.0,0.00043835,120]
[382060620,1756491075508,-480.0,0.00043835,120]
[382060621,1756491075519,-480.0,0.00043835,120]
[382060622,1756491075530,-480.0,0.00043835,120]
[382060623,1756491075540,-480.0,0.00043835,120]
[382060624,1756491075549,-480.0,0.00043835,120]
[382060625,1756491075558,-480.0,0.00043835,120]
[382060626,1756491075568,-480.0,0.00043835,120]
[382060627,1756491075578,-480.0,0.00043835,120]
[382060628,1756491075587,-480.0,0.00043835,120]
[382060629,1756491075597,-480.0,0.00043835,120]
[382060630,1756491075607,-480.0,0.00043835,120]
[382060631,1756491075617,-480.0,0.00043835,120]
[382060632,1756491075626,-480.0,0.00043835,120]
[382060633,1756491075636,-504.66,0.00043835,120]
[382060634,1756491075645,-480.0,0.00043835,120]
[382060635,1756491075655,-480.0,0.00043835,120]
[382060636,1756491075665,-480.0,0.00043835,120]
[382060637,1756491075676,-480.0,0.00043835,120]
[382060638,1756491075686,-480.0,0.00043835,120]
[382060639,1756491075696,-480.0,0.00043835,120]
[382060640,1756491075705,-480.0,0.00043835,120]
[382060641,1756491075715,-480.0,0.00043835,120]
[382060642,1756491075725,-480.0,0.00043835,120]
[382060643,1756491075734,-480.16646228,0.00043835,120]
[382060644,1756491075743,-480.0,0.00043835,120]
[382060645,1756491075753,-480.0,0.00043835,120]
[382060646,1756491075763,-499.6,0.00043835,120]
[382060647,1756491075772,-480.0,0.00043835,120]
[382060648,1756491075781,-480.0,0.00043835,120]
[382060649,1756491075791,-480.0,0.00043835,120]
[382060650,1756491075800,-480.0,0.00043835,120]
[382060651,1756491075810,-480.0,0.00043835,120]
[382060652,1756491075820,-480.0,0.00043835,120]
[382060653,1756491075829,-480.0,0.00043835,120]
[382060654,1756491075838,-480.0,0.00043835,120]
[382060655,1756491075848,-480.0,0.00043835,120]
[382060656,1756491075858,-480.0,0.00043835,120]
[382060657,1756491075868,-480.0,0.00043835,120]
[382060658,1756491075877,-480.0,0.00043835,120]
[382060659,1756491075885,-481.35723206,0.00043835,120]
[382060660,1756491075894,-480.0,0.00043835,120]
[382060661,1756491075904,-480.0,0.00043835,120]
[382060662,1756491075913,-480.0,0.00043835,120]
[382060663,1756491075922,-480.0,0.00043835,120]
[382060664,1756491075931,-480.0,0.00043835,120]
[382060665,1756491075941,-480.0,0.00043835,120]
[382060666,1756491075950,-480.75332339,0.00043835,120]
[382060667,1756491075959,-480.0,0.00043835,120]
[382060668,1756491075968,-480.0,0.00043835,120]
[382060669,1756491075977,-480.0,0.00043835,120]
[382060670,1756491075986,-559.52,0.00043835,120]
[382060671,1756491075995,-480.0,0.00043835,120]
[382060672,1756491076005,-480.0,0.00043835,120]
[382060673,1756491076015,-480.0,0.00043835,120]
[382060674,1756491076026,-480.0,0.00043835,120]
[382060675,1756491076035,-480.0,0.00043835,120]
[382060676,1756491076044,-480.0,0.00043835,120]
[382060677,1756491076053,-480.0,0.00043835,120]
[382060678,1756491076064,-693.65,0.00043835,120]
[382060679,1756491076073,-480.0,0.00043835,120]
[382060680,1756491076082,-480.0,0.00043835,120]
[382060681,1756491076091,-480.0,0.00043835,120]
[382060682,1756491076101,-480.0,0.00043835,120]
[382060683,1756491076110,-480.0,0.00043835,120]
[382060684,1756491076119,-482.38782049,0.00043835,120]
[382060685,1756491076128,-480.0,0.00043835,120]
[382060686,1756491076138,-480.0,0.00043835,120]
[382060687,1756491076147,-480.0,0.00043835,120]
[382060688,1756491076156,-480.0,0.00043835,120]
[382060689,1756491076165,-500.0,0.00043835,14]
[382060690,1756491076174,-480.0,0.00043835,120]
[382060691,1756491076184,-480.0,0.00043835,120]
[382060692,1756491076193,-480.0,0.00043835,120]
[382060693,1756491076203,-480.0,0.00043835,120]
[382060694,1756491076212,-480.0,0.00043835,120]
[382060695,1756491076222,-480.0,0.00043835,120]